bitfinex/quotes_ETHUSD_20240630
["timestamp","ask_amount","ask_price","bid_price","bid_amount"]
[1719785890745,0.50597065,3424.8,3424.1,0.837]
[1719785891004,1.25407606,3424.8,3424.5,0.07889747]
[1719785891147,0.50597065,3424.7,3424.1,0.837]
[1719785891992,0.50597065,3424.7,3424.2,0.07906151]
[1719785892202,0.50601177,3424.6,3424.2,0.07906151]
[1719785892349,0.74810541,3424.8,3424.1,0.837]
[1719785892696,0.50601196,3424.7,3424.2,0.146]
[1719785892894,0.50601196,3424.6,3424.2,0.146]
[1719785893189,0.50601196,3424.8,3424.2,0.146]
[1719785893997,2.3964,3424.7,3424.2,0.146]
[1719785894175,0.87995316,3424.6,3424.2,0.146]
[1719785894378,0.50601196,3424.5,3424.2,0.146]
[1719785895499,0.3739412,3424.6,3424.2,0.146]
[1719785895791,0.50605155,3424.5,3424.2,0.146]
[1719785896091,0.50605155,3424.4,3424.2,0.146]
[1719785896258,0.50605155,3424.3,3424.2,0.146]
[1719785896463,0.50605155,3424.5,3424.2,0.146]
[1719785896781,0.50605155,3424.4,3424.2,0.146]
[1719785897151,0.50605155,3424.6,3424.2,0.146]
[1719785897392,0.50605155,3424.5,3424.2,0.146]
[1719785897691,2.3964,3424.7,3424.2,0.146]
[1719785897692,0.50605155,3424.4,3424.2,0.146]
[1719785897893,2.3964,3424.7,3424.2,0.146]
[1719785898096,0.50603159,3424.6,3424.2,0.146]
[1719785898389,2.7435385,3424.7,3424.2,0.146]
[1719785898390,0.50603159,3424.5,3424.2,0.146]
[1719785898592,2.7435385,3424.7,3424.2,0.146]
[1719785898593,0.50603159,3424.6,3424.2,0.146]
[1719785898796,0.5060367,3424.5,3424.2,0.146]
[1719785898948,0.5060367,3424.4,3424.2,0.146]
[1719785899153,0.3471385,3424.7,3424.2,0.146]
[1719785899456,0.9115881,3424.6,3424.2,0.146]
[1719785899682,0.50602987,3424.5,3424.2,0.146]
[1719785901202,0.40555823,3424.6,3424.2,0.146]
[1719785903510,0.50603508,3424.5,3424.2,0.146]
[1719785903689,0.50603136,3424.5,3424.2,0.146]
[1719785903887,0.50603144,3424.4,3424.2,0.146]
[1719785904419,0.50603136,3424.5,3424.3,0.07902929]
[1719785904623,0.50603235,3424.4,3424.3,0.07902929]
[1719785904943,0.50603235,3424.4,3424.2,0.146]
[1719785905218,0.50603136,3424.5,3424.3,0.07902929]
[1719785905594,0.50603496,3424.4,3424.2,0.146]
[1719785905792,0.50603496,3424.3,3424.2,0.146]
[1719785906502,3.98005741,3424.3,3424.2,0.146]
[1719785908216,3.98009996,3424.3,3424.2,0.146]
[1719785908735,0.50607751,3424.3,3424.2,0.146]
[1719785908916,9.6028,3425.2,3424.2,0.146]
[1719785909076,3.50593524,3425.1,3424.4,0.837]
[1719785909282,0.50593524,3425.0,3424.2,0.146]
[1719785909690,0.50593524,3425.0,3424.3,0.837]
[1719785912415,3.0,3425.1,3424.3,0.837]
[1719785912636,0.5059744,3425.0,3424.3,0.837]
[1719785912815,0.5059744,3424.9,3424.3,0.837]
[1719785913129,0.5059744,3424.8,3424.2,0.146]
[1719785913329,0.5059744,3424.7,3424.3,0.07904813]
[1719785913518,0.5059744,3425.0,3424.2,0.983]
[1719785915833,0.50597213,3424.9,3424.2,0.983]
[1719785916037,0.50597213,3424.8,3424.2,0.983]
[1719785916274,0.50597219,3424.7,3424.3,0.27758]
[1719785916734,0.50597219,3424.6,3424.4,0.07897462]
[1719785916938,3.837,3425.1,3424.4,0.07897462]
[1719785917097,0.50597707,3425.0,3424.2,0.983]
[1719785917298,0.50597707,3424.9,3424.2,1.04140561]
[1719785917497,0.50597707,3424.8,3424.3,0.36244986]
[1719785917706,0.50597707,3424.7,3424.3,0.36244986]
[1719785917922,0.837,3425.2,3424.3,0.36244986]
[1719785918138,0.50596253,3425.1,3424.3,0.36244986]
[1719785918299,0.50596253,3425.0,3424.3,0.36244986]
[1719785918503,0.50596253,3424.9,3424.3,0.36244986]
[1719785918706,0.50596253,3424.8,3424.3,0.28342056]
[1719785918912,0.837,3425.2,3424.4,0.07897462]
[1719785918913,1.01191716,3424.7,3424.4,0.07897462]
[1719785919113,0.50596113,3424.6,3424.2,0.983]
[1719785919414,0.50596113,3424.6,3424.3,0.0790293]
[1719785919609,0.50596113,3424.6,3424.2,0.983]
[1719785919824,0.50596113,3424.6,3424.3,0.0790293]
[1719785920244,0.50595603,3424.7,3424.3,0.28548293]
[1719785920444,0.50596574,3424.6,3424.3,0.28548293]
[1719785920737,0.50595603,3424.7,3424.3,0.28548293]
[1719785920916,0.50596568,3424.6,3424.3,0.28548293]
[1719785921235,0.50595603,3424.7,3424.2,0.146]
[1719785921441,0.50597319,3424.6,3424.2,0.983]
[1719785921737,0.50597319,3424.6,3424.2,0.146]
[1719785921944,0.50597319,3424.6,3424.3,0.07899669]
[1719785922102,0.50595603,3424.7,3424.2,0.146]
[1719785922103,0.50600168,3424.5,3424.2,0.146]
[1719785922441,0.50595603,3424.7,3424.3,0.07899669]
[1719785922603,0.50600121,3424.6,3424.3,0.07899669]
[1719785922798,0.50600121,3424.5,3424.2,0.146]
[1719785923043,0.50595603,3424.7,3424.3,0.07899669]
[1719785923044,0.50600121,3424.6,3424.3,0.07899669]
[1719785923205,0.90719762,3424.5,3424.3,0.07899669]
[1719785923539,0.40119572,3424.5,3424.2,0.146]
[1719785923842,0.50595603,3424.7,3424.2,0.146]
[1719785924047,0.50599413,3424.6,3424.2,0.146]
[1719785924217,0.50599413,3424.5,3424.2,0.146]
[1719785924424,0.50599413,3424.6,3424.2,0.146]
[1719785924605,0.50599682,3424.5,3424.2,0.146]
[1719785924941,0.50601366,3424.4,3424.2,0.146]
[1719785925115,0.64609502,3424.6,3424.3,0.07900394]
[1719785925323,0.64609502,3424.6,3424.2,0.146]
[1719785925324,0.50601719,3424.5,3424.2,0.146]
[1719785925633,0.50601719,3424.4,3424.2,0.146]
[1719785925827,0.50601719,3424.5,3424.2,0.146]
[1719785926032,0.50601719,3424.5,3424.3,0.0790177]
[1719785926229,0.50601719,3424.5,3424.2,0.146]
[1719785927823,0.50601719,3424.6,3424.2,0.146]
[1719785928133,0.50595603,3424.7,3424.3,0.837]
[1719785928323,0.50595895,3424.6,3424.3,0.837]
[1719785928671,3.0,3425.1,3424.3,0.837]
[1719785928826,0.50596027,3425.0,3424.3,0.837]
[1719785929163,3.0,3425.1,3424.3,0.837]
[1719785929164,0.50596491,3424.9,3424.3,0.837]
[1719785929371,0.50596491,3424.8,3424.3,0.837]
[1719785929573,0.50596491,3425.0,3424.3,0.837]
[1719785929722,0.50596491,3424.9,3424.3,0.837]
[1719785929919,0.50596491,3425.0,3424.3,0.837]
[1719785931227,0.50596491,3425.0,3424.4,0.07896665]
[1719785931454,3.0,3425.1,3424.4,0.07896665]
[1719785931705,0.50595721,3425.0,3424.3,0.837]
[1719785931996,0.50595787,3424.9,3424.4,0.07896665]
[1719785932198,0.50595787,3424.8,3424.3,0.837]
[1719785932367,0.50595787,3425.0,3424.4,0.07896665]
[1719785932548,0.50595787,3424.9,3424.3,0.837]
[1719785932749,0.50595787,3424.8,3424.5,0.07891197]
[1719785932986,0.50595787,3424.7,3424.5,0.837]
[1719785933189,3.0,3425.1,3424.5,0.837]
[1719785933392,0.50595604,3425.0,3424.5,0.837]
[1719785933550,0.50595604,3424.9,3424.5,0.837]
[1719785933891,0.50595604,3424.8,3424.5,0.837]
[1719785934096,0.50595604,3424.7,3424.5,0.837]
[1719785934252,0.50595604,3425.0,3424.5,0.837]
[1719785934455,0.50595604,3424.9,3424.5,0.837]
[1719785934688,3.0,3425.1,3424.5,0.837]
[1719785934899,0.50595495,3424.8,3424.5,0.837]
[1719785935047,3.0,3425.1,3424.5,0.837]
[1719785935048,0.50595495,3424.7,3424.5,0.837]
[1719785935374,3.0,3425.1,3424.5,0.837]
[1719785935574,0.50595371,3425.0,3424.5,0.837]
[1719785935896,0.50595371,3424.9,3424.5,0.837]
[1719785936095,0.50595371,3424.8,3424.5,0.837]
[1719785936398,3.0,3425.1,3424.5,0.837]
[1719785936399,0.50595371,3424.7,3424.5,0.837]
[1719785936558,3.0,3425.1,3424.5,0.837]
[1719785936749,0.50595368,3425.0,3424.5,0.837]
[1719785936951,0.50595368,3424.9,3424.5,0.837]
[1719785937198,0.50595368,3424.8,3424.2,0.146]
[1719785937503,0.50595368,3424.7,3424.6,0.0788312]
[1719785937666,1.53795368,3425.0,3424.3,0.837]
[1719785937856,3.0,3425.1,3424.3,0.837]
[1719785937857,2.93685368,3424.9,3424.3,0.837]
[1719785938201,3.50595804,3424.8,3424.4,0.07894055]
[1719785938396,0.50595804,3424.7,3424.3,0.837]
[1719785938600,0.50595804,3424.6,3424.5,0.07888587]
[1719785938805,2.4309,3424.9,3424.3,0.837]
[1719785939009,2.4309,3424.9,3424.5,0.07888587]
[1719785939162,2.4309,3424.9,3424.3,0.837]
[1719785939361,2.4309,3424.9,3424.6,0.0788312]
[1719785939592,2.4309,3424.9,3424.3,0.837]
[1719785939866,2.4309,3424.9,3424.7,0.07877653]
[1719785940066,2.4309,3424.9,3424.3,0.837]
[1719785940514,2.4309,3424.9,3424.4,0.07894055]
[1719785944416,5.3702,3425.1,3424.5,1.12247406]
[1719785944568,5.3702,3425.1,3424.5,1.20135993]
[1719785945909,2.3702,3425.1,3424.5,1.20135993]
[1719785947270,2.3702,3425.1,3424.5,0.07888587]
[1719785947609,2.3702,3425.1,3424.2,0.983]
[1719785947778,2.3702,3425.1,3424.3,0.07898583]
[1719785947990,2.3702,3425.1,3424.2,0.983]
[1719785948165,2.3702,3425.1,3424.3,0.07898583]
[1719785948365,2.4718,3424.9,3424.2,0.983]
[1719785948669,2.4718,3424.9,3424.3,0.07898583]
[1719785949198,2.4718,3424.9,3424.2,0.983]
[1719785949388,2.4718,3424.9,3424.3,0.07898583]
[1719785949722,2.4718,3424.9,3424.2,0.983]
[1719785950029,2.4718,3424.9,3424.3,0.07898583]
[1719785950328,2.4718,3424.9,3424.2,2.7758]
[1719785950683,2.4718,3424.9,3424.3,0.07898583]
[1719785954247,2.4718,3424.9,3424.3,0.91598583]
[1719785956307,2.4718,3424.9,3424.3,2.70878583]
[1719785956969,7.32,3425.5,3424.5,2.92011]
[1719785957184,7.32,3425.9,3425.3,0.837]
[1719785957384,7.32,3426.3,3425.3,1.7928]
[1719785957726,7.32,3426.3,3425.6,0.837]
[1719785958561,7.32,3426.3,3424.9,2.962307]
[1719785958764,7.32,3426.3,3425.3,0.837]
[1719785958765,2.3762,3426.2,3425.3,0.837]
[1719785958931,5.3762,3426.2,3425.5,0.837]
[1719785960160,5.3762,3426.2,3425.6,0.07567423]
[1719785960461,5.3762,3426.2,3425.5,0.837]
[1719785960931,3.0,3426.1,3425.7,0.837]
[1719785961270,2.3762,3426.2,3425.7,0.837]
[1719785962924,5.2518,3426.5,3425.7,0.837]
[1719785963572,5.2518,3426.5,3425.8,0.07556496]
[1719785963719,6.59268,3426.5,3425.7,0.837]
[1719785966519,5.2518,3426.5,3425.7,0.837]
[1719785966718,5.2518,3426.5,3424.4,0.28547858]
[1719785966719,7.32,3427.8,3426.1,0.837]
[1719785966930,2.4161,3427.7,3426.3,0.837]
[1719785967142,2.4161,3427.2,3426.3,0.837]
[1719785967351,0.32531,3427.1,3426.4,0.07523216]
[1719785967626,0.75,3428.4,3426.8,0.837]
[1719785967627,2.4161,3427.0,3426.8,0.837]
[1719785967823,2.4161,3427.0,3426.6,0.837]
[1719785968135,2.4161,3427.3,3426.5,0.837]
[1719785968331,2.4161,3427.3,3426.7,0.837]
[1719785968768,2.4161,3427.3,3426.8,0.07501373]
[1719785969121,2.4161,3427.3,3426.7,0.837]
[1719785969350,2.4161,3427.3,3426.8,0.07501373]
[1719785969676,3.04141,3427.3,3426.6,0.837]
[1719785969828,3.0,3427.2,3426.6,0.837]
[1719785970164,3.0,3427.2,3426.7,0.07500537]
[1719785970680,3.0,3427.2,3426.2,0.05836831]
[1719785970837,0.837,3426.9,3426.8,0.07495077]
[1719785971023,17.113552,3426.9,3425.8,0.837]
[1719785971223,2.90182,3426.9,3425.8,0.837]
[1719785971426,2.90182,3426.9,3425.9,0.0754423]
[1719785971427,0.837,3426.7,3425.9,0.0754423]
[1719785971626,0.837,3426.7,3425.8,0.837]
[1719785971968,0.837,3426.5,3424.6,2.92001]
[1719785972127,2.4121,3426.6,3425.4,0.837]
[1719785972128,0.837,3426.3,3425.4,0.837]
[1719785972328,0.32491,3426.4,3425.9,0.07539452]
[1719785972523,0.32491,3426.4,3425.4,0.837]
[1719785972980,0.32491,3426.4,3425.5,0.07561306]
[1719785973264,0.837,3426.3,3425.5,0.07561306]
[1719785973439,0.499891,3426.2,3425.5,0.07561306]
[1719785974038,0.499891,3426.2,3425.0,1.7928]
[1719785974240,0.499891,3426.2,3425.6,0.07558448]
[1719785974461,0.32491,3426.4,3425.1,0.05838673]
[1719785974636,0.32491,3426.4,3425.7,0.07552984]
[1719785974835,0.32491,3426.4,3425.1,0.05838673]
[1719785975055,0.32491,3426.4,3425.8,0.07547521]
[1719785975234,0.32491,3426.4,3425.1,0.05838673]
[1719785975441,0.32491,3426.4,3425.9,0.07542058]
[1719785975624,0.32491,3426.4,3425.2,0.47708967]
[1719785975828,0.32491,3426.4,3426.0,0.07536595]
[1719785976040,0.32491,3426.4,3425.2,0.47708967]
[1719785976244,0.32491,3426.4,3426.1,0.07531133]
[1719785976517,1.305701,3426.3,3425.2,0.47708967]
[1719785976775,0.30536856,3426.3,3425.3,0.07574841]
[1719785976929,0.30536856,3426.3,3425.4,0.0583798]
[1719785977262,3.0,3426.5,3425.5,0.07563912]
[1719785977932,3.0,3426.5,3425.2,2.008]
[1719785978134,3.0,3426.5,3425.7,1.7928]
[1719785978368,3.0,3426.5,3425.8,0.17928]
[1719785978678,3.0,3426.5,3425.9,0.05836991]
[1719785978828,3.0,3426.9,3425.9,0.05836991]
[1719785979041,3.0,3426.9,3426.0,0.07536305]
[1719785979249,5.5287,3426.9,3425.8,0.17928]
[1719785979459,3.0,3426.9,3425.9,0.07541768]
[1719785979966,3.0,3426.9,3426.0,0.01881982]
[1719785980166,3.0,3426.9,3425.9,0.07541768]
[1719785980470,3.0,3426.9,3426.0,0.13373297]
[1719785981032,3.0,3426.9,3426.0,0.07536305]
[1719785981233,3.0,3426.9,3425.8,0.17928]
[1719785981432,3.0,3426.9,3425.9,0.47342568]
[1719785981891,3.0,3426.9,3426.0,0.05836993]
[1719785982045,3.0,3426.9,3425.9,0.47342568]
[1719785982247,3.0,3426.9,3426.0,0.05836993]
[1719785982448,3.0,3426.9,3426.1,0.07530843]
[1719785983257,3.0,3426.9,3425.9,0.398008]
[1719785983258,7.32,3427.4,3426.0,1.7928]
[1719785983431,7.32,3427.8,3426.3,1.7928]
[1719785983632,7.32,3427.8,3426.4,2.06635949]
[1719785983887,7.32,3427.8,3426.5,0.07505015]
[1719785984073,2.24077651,3427.7,3426.6,0.74363949]
[1719785984459,2.24077651,3427.7,3426.7,0.07491995]
[1719785984935,3.0,3427.7,3426.7,0.07491995]
[1719785986146,0.1185651,3428.0,3426.8,3.85915948]
[1719785986612,0.1185651,3428.0,3426.9,0.07481075]
[1719785986738,0.1185651,3428.0,3427.0,0.05834998]
[1719785987071,0.1185651,3428.0,3427.1,0.07466322]
[1719785987371,0.1185651,3428.0,3427.2,0.05834995]
[1719785987726,0.1185651,3428.0,3427.3,0.07455405]
[1719785987942,0.1185651,3428.0,3427.4,0.0583447]
[1719785988343,0.1185651,3428.0,3427.5,0.07444488]
[1719785988544,0.1185651,3428.0,3427.6,0.05834251]
[1719785988784,0.1185651,3428.0,3427.7,0.07429307]
[1719785988962,0.1185651,3428.0,3427.7,0.19254356]
[1719785989349,0.1185651,3428.0,3427.8,0.0742385]
[1719785989541,0.1185651,3428.0,3427.7,0.19254356]
[1719785990058,0.1185651,3428.0,3427.8,0.0742385]
[1719785990268,0.1185651,3428.0,3427.7,0.19254356]
[1719785990653,0.1185651,3428.0,3427.8,0.0742385]
[1719785990873,0.1185651,3428.0,3427.8,0.21179246]
[1719785992642,0.1185651,3428.0,3427.2,2.008]
[1719785992847,0.1185651,3428.0,3427.0,2.47801807]
[1719785993157,0.1185651,3428.0,3427.1,0.07462056]
[1719785993574,0.1185651,3428.0,3426.1,1.7928]
[1719785993891,0.46929859,3428.0,3426.2,0.07509465]
[1719785996100,2.3423,3427.9,3426.2,0.07509465]
[1719785996260,5.3423,3427.9,3426.2,0.07509465]
[1719785997093,0.58115986,3427.8,3426.3,0.38758947]
[1719785997303,3.58115986,3427.8,3426.3,0.38758947]
[1719785997521,3.58115986,3427.8,3426.4,0.07498542]
[1719785999702,3.58115986,3427.8,3426.5,0.38759]
[1719786000096,3.58115986,3427.8,3426.6,0.07483353]
[1719786000303,0.6042025,3427.7,3426.6,0.07483353]
[1719786007180,3.0,3427.8,3426.6,0.07483353]
[1719786007519,3.0,3427.7,3426.7,0.05835879]
[1719786007683,2.3423,3427.9,3426.8,0.05835209]
[1719786007884,2.3423,3427.9,3426.8,1.92595813]
[1719786008621,0.1185651,3428.0,3426.9,2.558]
[1719786008806,0.1185651,3428.0,3427.3,2.008]
[1719786008981,0.1185651,3428.0,3427.4,0.07443725]
[1719786009500,0.1185651,3428.0,3427.5,0.05834278]
[1719786009699,0.1185651,3428.0,3427.4,0.07443725]
[1719786009894,0.1185651,3428.0,3427.6,0.0743281]
[1719786010098,0.1185651,3428.0,3427.5,0.07438267]
[1719786010288,0.1185651,3428.0,3427.7,0.07427352]
[1719786010502,0.1185651,3428.0,3427.6,0.0743281]
[1719786010724,0.1185651,3428.0,3427.0,0.73272421]
[1719786011134,0.1185651,3428.0,3427.1,0.07460101]
[1719786013033,2.4082,3427.9,3427.1,0.07460101]
[1719786013260,2.96087651,3427.9,3426.4,3.8008]
[1719786013546,5.4082,3427.9,3426.6,0.07482772]
[1719786014242,3.0,3427.9,3426.6,0.07482772]
[1719786014543,0.1185651,3428.0,3426.0,3.8008]
[1719786014544,2.4082,3427.8,3426.0,3.8008]
[1719786014741,2.4082,3427.6,3426.0,3.8008]
[1719786014942,5.4082,3427.6,3426.6,0.07482772]
[1719786018645,2.4082,3427.6,3426.6,0.07482772]
[1719786020642,2.4082,3427.6,3426.6,1.86762772]
[1719786021225,3.0,3427.8,3426.6,1.86762772]
[1719786021563,3.0,3427.8,3426.7,0.22552177]
[1719786021862,3.0,3427.8,3426.8,0.07473228]
[1719786022428,3.0,3427.8,3426.7,0.22552177]
[1719786022612,3.0,3427.8,3426.8,0.07473228]
[1719786022815,3.0,3427.8,3426.7,0.28387967]
[1719786023116,3.0,3427.8,3426.8,0.32115925]
[1719786026340,3.0,3427.8,3426.8,0.07473228]
[1719786026654,2.4476,3427.7,3426.5,0.38759]
[1719786026816,2.4476,3427.7,3426.6,0.07484149]
[1719786027846,2.4476,3427.7,3426.5,0.38759]
[1719786028053,2.4476,3427.5,3426.7,0.07478688]
[1719786028261,2.4476,3427.5,3426.6,0.07484149]
[1719786028443,5.4476,3427.5,3426.5,0.38759]
[1719786028630,0.672436,3427.4,3426.5,0.38759]
[1719786028832,3.672436,3427.4,3426.5,0.38759]
[1719786029153,2.3546,3427.3,3426.2,0.146]
[1719786029457,5.3546,3427.3,3426.2,0.146]
[1719786029612,5.3546,3427.3,3426.3,0.07500532]
[1719786029813,0.6027036,3427.2,3426.2,0.146]
[1719786030121,3.6027036,3427.2,3426.3,0.07500532]
[1719786030516,3.6027036,3427.2,3426.2,0.146]
[1719786030930,3.6027036,3427.2,3426.3,0.07500532]
[1719786031261,3.6027036,3427.2,3426.2,0.146]
[1719786031758,3.6027036,3427.2,3426.3,0.11168687]
[1719786031759,0.59573036,3427.1,3426.3,0.11168687]
[1719786032251,0.59573036,3427.1,3426.2,0.146]
[1719786032449,0.59573036,3427.1,3426.3,0.11168688]
[1719786032657,0.59573036,3427.1,3426.2,0.146]
[1719786032858,0.6553034,3427.0,3426.2,0.146]
[1719786033185,2.273,3426.9,3426.3,0.11168688]
[1719786033318,2.273,3426.6,3426.3,0.11168688]
[1719786033522,0.49494682,3426.5,3426.2,0.146]
[1719786033719,0.47759468,3426.4,3426.2,0.146]
[1719786034032,0.49494682,3426.3,3426.2,0.146]
[1719786035470,3.0,3426.5,3426.2,0.146]
[1719786035621,2.273,3426.6,3426.2,0.146]
[1719786035813,2.273,3426.6,3426.3,0.10824684]
[1719786036228,5.76794682,3426.9,3426.2,0.146]
[1719786036649,5.76794682,3426.9,3426.3,0.10825118]
[1719786037059,5.76794682,3426.9,3426.2,0.146]
[1719786037279,5.76794682,3426.9,3426.3,0.10825118]
[1719786037428,5.76794682,3426.9,3426.2,0.146]
[1719786037625,5.76794682,3426.9,3426.3,0.10825118]
[1719786037976,5.76794682,3426.9,3426.2,0.146]
[1719786037977,0.64232502,3426.8,3426.2,0.146]
[1719786038266,0.64232502,3426.8,3426.3,0.10825118]
[1719786038423,0.64232502,3426.8,3426.2,0.146]
[1719786038624,0.64232502,3426.8,3426.3,0.10825118]
[1719786038867,0.64232502,3426.8,3426.2,0.146]
[1719786039025,0.64232502,3426.8,3426.3,0.10825118]
[1719786039575,0.64232502,3426.8,3426.2,0.146]
[1719786040062,0.64232502,3426.8,3426.3,0.10825118]
[1719786040460,0.64232502,3426.8,3426.2,0.146]
[1719786040635,0.64102718,3426.7,3426.3,0.10825118]
[1719786040841,0.64102718,3426.7,3426.2,0.146]
[1719786041028,0.64102718,3426.7,3426.3,0.10825118]
[1719786041382,0.64102718,3426.7,3426.2,0.146]
[1719786041824,0.64102718,3426.7,3426.3,0.10825118]
[1719786042015,0.64102718,3426.7,3426.2,0.146]
[1719786042417,0.64102718,3426.7,3426.3,0.10825118]
[1719786042874,0.6408974,3426.6,3426.2,0.146]
[1719786043341,2.3585,3426.5,3426.3,0.10825118]
[1719786043543,5.3585,3426.5,3426.3,0.10825118]
[1719786043763,0.64943442,3426.4,3426.2,0.146]
[1719786043932,3.64943442,3426.4,3426.2,0.146]
[1719786044278,4.14438124,3426.4,3426.2,0.146]
[1719786046805,3.64943442,3426.4,3426.2,0.146]
[1719786047931,3.0,3426.3,3426.2,0.146]
[1719786048148,3.0,3426.7,3426.2,0.146]
[1719786048507,4.31734468,3426.7,3426.2,0.146]
[1719786050008,3.0,3426.7,3426.3,1.7928]
[1719786050285,7.32,3427.1,3426.3,1.85116639]
[1719786050493,7.32,3427.1,3426.4,0.10467242]
[1719786051366,7.32,3427.1,3426.4,0.16303531]
[1719786051769,7.32,3427.1,3426.5,0.41098353]
[1719786052275,7.32,3427.1,3426.3,1.7928]
[1719786055410,7.32,3427.1,3426.3,1.8511668]
[1719786055787,7.32,3427.1,3426.4,0.10134567]
[1719786055985,7.32,3427.4,3426.3,1.8511668]
[1719786056314,3.0,3427.3,3426.4,0.10134567]
[1719786056615,3.0,3427.3,3426.5,0.20985125]
[1719786061184,3.0,3427.3,3426.6,0.10104764]
[1719786061722,3.0,3427.3,3426.3,1.7928]
[1719786061919,3.0,3427.3,3426.4,0.101159]
[1719786062636,3.0,3427.3,3426.5,1.7928]
[1719786062818,3.0,3427.3,3426.5,1.85116304]
[1719786063133,3.0,3427.3,3426.7,1.7928]
[1719786063424,7.32,3427.4,3426.8,0.10093629]
[1719786066222,7.32,3427.4,3426.9,1.7928]
[1719786066626,7.32,3427.4,3427.0,0.10072086]
[1719786066848,10.32,3427.8,3427.0,0.10072086]
[1719786067029,10.32,3427.8,3427.1,0.18935209]
[1719786067404,10.32,3427.8,3427.2,0.10060954]
[1719786069611,7.32,3428.5,3427.3,1.85114696]
[1719786069816,7.32,3428.5,3427.3,6.77683696]
[1719786070015,7.32,3428.5,3427.5,1.7928]
[1719786070204,7.32,3428.5,3427.6,0.68773281]
[1719786070530,7.32,3428.5,3427.6,0.78810977]
[1719786070752,7.32,3428.5,3427.8,1.7928]
[1719786071255,7.32,3428.5,3427.9,0.10021004]
[1719786074340,7.32,3428.5,3427.6,0.68773281]
[1719786074564,7.32,3428.5,3427.7,0.64013859]
[1719786075557,7.32,3428.5,3427.8,0.03727017]
[1719786075762,7.32,3428.5,3427.7,0.64013859]
[1719786075967,7.32,3428.5,3427.9,0.10021004]
[1719786076260,7.32,3428.5,3427.8,0.10026568]
[1719786076427,7.32,3428.5,3427.9,0.10021004]
[1719786076818,7.32,3428.5,3427.7,0.53981728]
[1719786077016,7.32,3428.5,3427.9,0.10021004]
[1719786077381,7.32,3428.5,3427.9,3.90101004]
[1719786077712,7.32,3428.5,3427.9,3.94694785]
[1719786078352,7.32,3429.4,3428.4,2.91676]
[1719786078619,7.32,3429.9,3428.5,3.65818177]
[1719786079356,7.32,3429.9,3428.5,0.74146177]
[1719786079584,7.32,3429.9,3428.6,1.6742]
[1719786079877,7.32,3429.9,3428.9,2.008]
[1719786080178,7.32,3429.9,3429.0,0.15778019]
[1719786080338,7.32,3429.9,3429.1,0.21657802]
[1719786080517,7.32,3430.2,3429.2,0.15766898]
[1719786081164,7.32,3430.5,3429.3,0.05831259]
[1719786081911,7.32,3430.5,3429.4,0.0992412]
[1719786082022,3.0,3430.4,3429.4,0.0992412]
[1719786082218,3.0,3430.4,3429.4,0.15755309]
[1719786082418,3.0,3430.4,3429.2,1.6742]
[1719786082652,3.0,3430.4,3429.5,0.09918561]
[1719786082819,3.0,3430.4,3429.3,0.09929678]
[1719786083015,3.0,3430.4,3429.6,0.09913003]
[1719786083256,4.28031,3430.4,3429.2,1.6742]
[1719786083461,3.0,3430.4,3429.3,0.0583119]
[1719786083771,3.0,3430.4,3429.3,0.15760868]
[1719786085421,7.32,3430.5,3429.4,1.6742]
[1719786085644,7.32,3430.5,3429.5,0.05830783]
[1719786085854,7.32,3430.8,3429.6,0.38398046]
[1719786086120,7.32,3431.1,3429.7,0.09899825]
[1719786086974,3.0,3431.0,3429.7,0.09899825]
[1719786087123,1.032,3430.9,3429.7,0.09899825]
[1719786087967,1.032,3430.9,3429.4,1.6742]
[1719786088323,1.032,3430.9,3429.5,0.09910941]
[1719786088749,4.5,3430.8,3429.5,0.09910941]
[1719786088955,4.5,3430.8,3429.0,1.6742]
[1719786088956,3.0,3430.7,3429.0,1.6742]
[1719786089138,0.9082,3430.6,3429.1,0.09919786]
[1719786091637,0.9082,3430.6,3429.1,0.24519786]
[1719786092064,2.492,3430.5,3429.1,0.24519786]
[1719786092228,2.008,3430.4,3429.1,0.24519786]
[1719786092431,3.0,3430.4,3429.1,0.146]
[1719786092727,3.042,3430.5,3429.1,0.146]
[1719786092728,0.69502,3430.3,3429.1,0.146]
[1719786093654,0.69502,3430.3,3429.2,0.09914226]
[1719786098062,0.69502,3430.3,3429.1,0.146]
[1719786100365,7.32,3430.6,3429.2,1.6742]
[1719786100559,7.32,3431.8,3430.1,2.008]
[1719786100804,7.32,3431.8,3430.2,0.09865772]
[1719786101159,7.32,3431.8,3429.9,0.05830329]
[1719786101362,2.008,3431.5,3430.0,0.09876884]
[1719786101564,2.4025,3431.3,3429.8,1.6742]
[1719786101806,2.4025,3431.3,3429.9,0.09882441]
[1719786102325,2.4025,3431.3,3429.3,1.6742]
[1719786102326,2.008,3431.1,3429.3,1.6742]
[1719786102616,2.008,3431.1,3429.4,0.09910229]
[1719786102827,1.04105,3431.0,3429.4,0.09910229]
[1719786103118,0.55,3430.9,3429.4,0.09910229]
[1719786104319,2.008,3430.6,3429.4,0.09910229]
[1719786104504,2.008,3430.2,3429.1,0.146]
[1719786104826,2.008,3430.2,3429.2,0.09921347]
[1719786105131,0.2008,3430.1,3429.1,0.146]
[1719786105475,7.32,3430.4,3429.2,0.09921347]
[1719786105801,7.32,3430.4,3429.1,0.146]
[1719786106009,3.0,3430.3,3429.1,0.146]
[1719786106612,3.0,3430.3,3429.2,0.09921347]
[1719786107124,3.0,3430.3,3429.1,0.146]
[1719786107436,3.0,3430.3,3429.2,1.77341347]
[1719786107585,3.0,3430.3,3429.3,0.25025532]
[1719786107981,3.0,3430.3,3429.4,0.09910229]
[1719786108492,3.0,3430.3,3429.3,0.19194135]